[Event "Live Chess"]
[Site "Chess.com"]
[Date "2024.06.01"]
[Round "-"]
[White "IgorSchukin"]
[Black "OSmith06"]
[Result "1-0"]
[WhiteElo "1699"]
[BlackElo "1791"]
[TimeControl "300"]
[EndTime "14:35:14 PDT"]
[Termination "IgorSchukin won by resignation"]

1. e4 {[%clk 0:04:58]} 1... c6 {[%clk 0:04:58.5]} 2. d4 {[%clk 0:04:56.6]} 2...
d5 {[%clk 0:04:58.4]} 3. Nc3 {[%clk 0:04:55.8]} 3... dxe4 {[%clk 0:04:57.6]} 4.
Nxe4 {[%clk 0:04:54.7]} 4... Bf5 {[%clk 0:04:57.3]} 5. Ng3 {[%clk 0:04:53.4]}
5... Bg6 {[%clk 0:04:56.1]} 6. f4 {[%clk 0:04:52.9]} 6... e6 {[%clk 0:04:49.8]}
7. Nf3 {[%clk 0:04:51.1]} 7... Nf6 {[%clk 0:04:47]} 8. Bd3 {[%clk 0:04:50.5]}
8... Bxd3 {[%clk 0:04:45.8]} 9. Qxd3 {[%clk 0:04:49.6]} 9... Nbd7 {[%clk
0:04:45.4]} 10. O-O {[%clk 0:04:48.8]} 10... Bd6 {[%clk 0:04:44.4]} 11. f5
{[%clk 0:04:48]} 11... exf5 {[%clk 0:04:28.8]} 12. Re1+ {[%clk 0:04:46.1]} 12...
Kf8 {[%clk 0:04:17.8]} 13. Nxf5 {[%clk 0:04:44.5]} 13... Qc7 {[%clk 0:04:13]}
14. Nxd6 {[%clk 0:04:29.3]} 14... Qxd6 {[%clk 0:04:12.9]} 15. Bg5 {[%clk
0:04:26.2]} 15... h6 {[%clk 0:04:06.2]} 16. Bh4 {[%clk 0:04:22.9]} 16... g6
{[%clk 0:03:58.4]} 17. Ne5 {[%clk 0:04:15.8]} 17... Kg7 {[%clk 0:03:35.9]} 18.
Nxd7 {[%clk 0:04:06.3]} 18... Nxd7 {[%clk 0:03:33.3]} 19. Rad1 {[%clk
0:04:01.7]} 19... Rhe8 {[%clk 0:03:27.2]} 20. Bg3 {[%clk 0:03:46.9]} 20... Qf6
{[%clk 0:03:14.3]} 21. Rxe8 {[%clk 0:03:36.2]} 21... Rxe8 {[%clk 0:03:12.2]} 22.
Re1 {[%clk 0:03:35.2]} 22... Rxe1+ {[%clk 0:03:05.3]} 23. Bxe1 {[%clk
0:03:33.6]} 23... Qe6 {[%clk 0:03:01.2]} 24. Bg3 {[%clk 0:03:27.8]} 24... Qxa2
{[%clk 0:02:56.7]} 25. Qc3 {[%clk 0:03:19.9]} 25... Qd5 {[%clk 0:02:38]} 26. b3
{[%clk 0:03:13.4]} 26... c5 {[%clk 0:02:32.5]} 27. dxc5+ {[%clk 0:03:08.8]}
27... Kh7 {[%clk 0:02:20.4]} 28. b4 {[%clk 0:03:02.4]} 28... Qd1+ {[%clk
0:02:06.7]} 29. Kf2 {[%clk 0:03:00.3]} 29... Qd5 {[%clk 0:01:52.2]} 30. h3
{[%clk 0:02:51.2]} 30... Qf5+ {[%clk 0:01:38.9]} 31. Kg1 {[%clk 0:02:48]} 31...
Nf6 {[%clk 0:01:38.2]} 32. Qe5 {[%clk 0:02:29.3]} 32... Qxe5 {[%clk 0:01:17.4]}
33. Bxe5 {[%clk 0:02:28]} 33... Nd5 {[%clk 0:01:14]} 34. b5 {[%clk 0:02:25.2]}
34... Ne3 {[%clk 0:01:07.6]} 35. c6 {[%clk 0:02:19]} 1-0

[Event "Live Chess"]
[Site "Chess.com"]
[Date "2024.06.01"]
[Round "-"]
[White "CarmelJane"]
[Black "upoe610"]
[Result "0-1"]
[WhiteElo "2082"]
[BlackElo "2234"]
[TimeControl "300"]
[EndTime "14:35:15 PDT"]
[Termination "upoe610 won by resignation"]

1. e4 {[%clk 0:04:58.1]} 1... e5 {[%clk 0:04:58.5]} 2. Nf3 {[%clk 0:04:55.6]}
2... Nc6 {[%clk 0:04:57.4]} 3. d4 {[%clk 0:04:54.1]} 3... exd4 {[%clk
0:04:56.4]} 4. Bc4 {[%clk 0:04:53.2]} 4... Nf6 {[%clk 0:04:55.5]} 5. e5 {[%clk
0:04:51.4]} 5... Ne4 {[%clk 0:04:53.8]} 6. O-O {[%clk 0:04:33.1]} 6... Be7
{[%clk 0:04:51.2]} 7. Bf4 {[%clk 0:04:27.8]} 7... O-O {[%clk 0:04:47.5]} 8. Nxd4
{[%clk 0:04:27.3]} 8... d5 {[%clk 0:04:46.3]} 9. Nxc6 {[%clk 0:04:23.9]} 9...
bxc6 {[%clk 0:04:46.2]} 10. Bd3 {[%clk 0:04:21.9]} 10... Bf5 {[%clk 0:04:41.9]}
11. f3 {[%clk 0:04:13.3]} 11... Bc5+ {[%clk 0:04:40.2]} 12. Kh1 {[%clk
0:04:10.3]} 12... Nf2+ {[%clk 0:04:37.9]} 13. Rxf2 {[%clk 0:04:09.5]} 13... Bxd3
{[%clk 0:04:37.1]} 14. Rd2 {[%clk 0:04:01.8]} 14... Bg6 {[%clk 0:04:34.5]} 15.
c4 {[%clk 0:03:54.8]} 15... d4 {[%clk 0:04:30.2]} 16. a3 {[%clk 0:03:52.8]}
16... a5 {[%clk 0:04:26.8]} 17. Nc3 {[%clk 0:03:46.7]} 17... Rb8 {[%clk
0:04:21.9]} 18. Ne2 {[%clk 0:03:33.4]} 18... d3 {[%clk 0:04:18.8]} 19. Nc3
{[%clk 0:03:27.1]} 19... Bd4 {[%clk 0:04:14.5]} 20. Qa4 {[%clk 0:03:12.3]} 20...
c5 {[%clk 0:04:09.9]} 21. Qxa5 {[%clk 0:03:06.1]} 21... c6 {[%clk 0:04:04.2]}
22. Qa4 {[%clk 0:03:01.4]} 22... Rxb2 {[%clk 0:04:02]} 23. Rxb2 {[%clk
0:02:53.7]} 23... Bxc3 {[%clk 0:04:00.5]} 24. Rbb1 {[%clk 0:02:39.6]} 24... Bxa1
{[%clk 0:03:58.9]} 25. Rxa1 {[%clk 0:02:39.5]} 25... Qd4 {[%clk 0:03:58.8]} 0-1

[Event "Live Chess"]
[Site "Chess.com"]
[Date "2024.06.01"]
[Round "-"]
[White "bonantagulo"]
[Black "cymbalshift"]
[Result "1-0"]
[WhiteElo "2117"]
[BlackElo "1507"]
[TimeControl "300"]
[EndTime "14:35:30 PDT"]
[Termination "bonantagulo won by resignation"]

1. d4 {[%clk 0:04:57.4]} 1... Nf6 {[%clk 0:04:58.4]} 2. c4 {[%clk 0:04:55.8]}
2... e6 {[%clk 0:04:57.5]} 3. Nf3 {[%clk 0:04:47.9]} 3... c5 {[%clk 0:04:55.4]}
4. d5 {[%clk 0:04:39.1]} 4... exd5 {[%clk 0:04:55.3]} 5. cxd5 {[%clk 0:04:39]}
5... d6 {[%clk 0:04:54.3]} 6. Nc3 {[%clk 0:04:33.3]} 6... g6 {[%clk 0:04:53.1]}
7. e4 {[%clk 0:04:09.6]} 7... Bg7 {[%clk 0:04:51.7]} 8. Bb5+ {[%clk 0:04:06.5]}
8... Bd7 {[%clk 0:04:50]} 9. a4 {[%clk 0:04:03.6]} 9... O-O {[%clk 0:04:47.9]}
10. O-O {[%clk 0:04:02]} 10... Bg4 {[%clk 0:04:43.6]} 11. Be2 {[%clk 0:04:00]}
11... a6 {[%clk 0:04:41.2]} 12. Nd2 {[%clk 0:03:59.1]} 12... Bxe2 {[%clk
0:04:38.5]} 13. Qxe2 {[%clk 0:03:59]} 13... Re8 {[%clk 0:04:37.8]} 14. Nc4
{[%clk 0:03:55.5]} 14... Qe7 {[%clk 0:04:12.6]} 15. Re1 {[%clk 0:03:19.9]} 15...
Nbd7 {[%clk 0:04:10.7]} 16. Bf4 {[%clk 0:03:12.8]} 16... Ne5 {[%clk 0:03:53.9]}
17. Bxe5 {[%clk 0:03:08.6]} 17... dxe5 {[%clk 0:03:52.2]} 18. a5 {[%clk
0:03:07.2]} 18... Rad8 {[%clk 0:03:43.7]} 19. Na4 {[%clk 0:02:54.3]} 19... Nh5
{[%clk 0:03:35.1]} 20. d6 {[%clk 0:02:48.8]} 20... Qg5 {[%clk 0:03:20.8]} 21.
Nxc5 {[%clk 0:02:43.3]} 21... Nf4 {[%clk 0:03:19.2]} 22. Qf3 {[%clk 0:02:42.4]}
22... f5 {[%clk 0:03:15.4]} 23. g3 {[%clk 0:02:23.8]} 23... Nh3+ {[%clk
0:02:59.5]} 24. Kg2 {[%clk 0:02:18.5]} 24... h5 {[%clk 0:02:49.7]} 25. Kxh3
{[%clk 0:02:13.1]} 25... h4 {[%clk 0:02:48.9]} 26. gxh4 {[%clk 0:01:54.5]} 1-0

[Event "Live Chess"]
[Site "Chess.com"]
[Date "2024.06.01"]
[Round "-"]
[White "gmnorfolk"]
[Black "kylet1990"]
[Result "1-0"]
[WhiteElo "2081"]
[BlackElo "734"]
[TimeControl "300"]
[EndTime "14:35:31 PDT"]
[Termination "gmnorfolk won by resignation"]

1. e4 {[%clk 0:04:57.2]} 1... c6 {[%clk 0:04:58.8]} 2. d4 {[%clk 0:04:55.6]}
2... d5 {[%clk 0:04:57.5]} 3. e5 {[%clk 0:04:54.8]} 3... Bf5 {[%clk 0:04:55.9]}
4. h4 {[%clk 0:04:52.1]} 4... e6 {[%clk 0:04:54.6]} 5. g4 {[%clk 0:04:50]} 5...
Be4 {[%clk 0:04:47]} 6. f3 {[%clk 0:04:48.9]} 6... Bxc2 {[%clk 0:04:41.4]} 7.
Qxc2 {[%clk 0:04:46.1]} 7... f6 {[%clk 0:04:36.5]} 8. exf6 {[%clk 0:04:41.4]}
8... Nxf6 {[%clk 0:04:34.7]} 9. Be3 {[%clk 0:04:39.8]} 9... Bb4+ {[%clk
0:04:28.8]} 10. Nc3 {[%clk 0:04:17.5]} 10... Na6 {[%clk 0:04:24.8]} 11. a3
{[%clk 0:04:15.8]} 11... Bxc3+ {[%clk 0:04:23.2]} 12. Qxc3 {[%clk 0:04:11.1]}
12... O-O {[%clk 0:04:18.8]} 13. Bd3 {[%clk 0:04:08.8]} 13... Nd7 {[%clk
0:04:12.5]} 14. Ne2 {[%clk 0:04:03.4]} 14... Rxf3 {[%clk 0:04:09.5]} 15. Bd2
{[%clk 0:03:59.9]} 15... c5 {[%clk 0:03:56.9]} 16. Bxh7+ {[%clk 0:03:54.4]}
16... Kxh7 {[%clk 0:03:54.6]} 17. Qxf3 {[%clk 0:03:53.9]} 17... Qb6 {[%clk
0:03:44.8]} 18. dxc5 {[%clk 0:03:49.5]} 18... Qxb2 {[%clk 0:03:42.6]} 19. Qd3+
{[%clk 0:03:47.3]} 19... Kh8 {[%clk 0:03:39.7]} 20. Bc3 {[%clk 0:03:46.6]} 1-0

[Event "Live Chess"]
[Site "Chess.com"]
[Date "2024.06.01"]
[Round "-"]
[White "KeithArkell"]
[Black "Frankie_Badacsonyi"]
[Result "0-1"]
[WhiteElo "2413"]
[BlackElo "2448"]
[TimeControl "300"]
[EndTime "14:36:16 PDT"]
[Termination "Frankie_Badacsonyi won by resignation"]

1. d4 {[%clk 0:04:58]} 1... Nf6 {[%clk 0:04:58.2]} 2. Nf3 {[%clk 0:04:57.4]}
2... e6 {[%clk 0:04:57.5]} 3. c4 {[%clk 0:04:56.9]} 3... d5 {[%clk 0:04:55.9]}
4. cxd5 {[%clk 0:04:56]} 4... exd5 {[%clk 0:04:55.8]} 5. Nc3 {[%clk 0:04:55.5]}
5... a6 {[%clk 0:04:50.3]} 6. Bg5 {[%clk 0:04:53.8]} 6... Be6 {[%clk 0:04:49.3]}
7. e3 {[%clk 0:04:53]} 7... Nbd7 {[%clk 0:04:48.5]} 8. Bd3 {[%clk 0:04:52.2]}
8... Bd6 {[%clk 0:04:47.7]} 9. Qc2 {[%clk 0:04:51.6]} 9... c6 {[%clk 0:04:46.5]}
10. O-O {[%clk 0:04:41.7]} 10... h6 {[%clk 0:04:45.3]} 11. Bh4 {[%clk
0:04:40.6]} 11... Qc7 {[%clk 0:04:44.4]} 12. Bg3 {[%clk 0:04:39.9]} 12... Bxg3
{[%clk 0:04:43.2]} 13. hxg3 {[%clk 0:04:39.8]} 13... Qd6 {[%clk 0:04:42.5]} 14.
b4 {[%clk 0:04:38.2]} 14... b5 {[%clk 0:04:22.8]} 15. a4 {[%clk 0:04:35.9]}
15... O-O {[%clk 0:04:18.8]} 16. Qb3 {[%clk 0:04:16.8]} 16... Nb6 {[%clk
0:04:15.6]} 17. Ne5 {[%clk 0:04:12.5]} 17... Nc4 {[%clk 0:04:13.6]} 18. Bxc4
{[%clk 0:04:12]} 18... bxc4 {[%clk 0:04:10.7]} 19. Qa3 {[%clk 0:04:10]} 19...
Rfb8 {[%clk 0:04:04.7]} 20. Rfb1 {[%clk 0:04:08.7]} 20... Rb7 {[%clk 0:03:48.6]}
21. a5 {[%clk 0:04:04.6]} 21... Rab8 {[%clk 0:03:37]} 22. f3 {[%clk 0:04:00.8]}
22... Nd7 {[%clk 0:03:30.1]} 23. Nxd7 {[%clk 0:03:58.7]} 23... Bxd7 {[%clk
0:03:30]} 24. Na4 {[%clk 0:03:37.6]} 24... Rxb4 {[%clk 0:03:18.4]} 25. Rxb4
{[%clk 0:03:36.7]} 25... Qxb4 {[%clk 0:03:17.4]} 26. Qxb4 {[%clk 0:03:36.1]}
26... Rxb4 {[%clk 0:03:17.3]} 27. Ra2 {[%clk 0:03:27.5]} 27... Kf8 {[%clk
0:03:10.3]} 28. Kf2 {[%clk 0:03:26.7]} 28... Ke7 {[%clk 0:03:08]} 29. Ke2 {[%clk
0:03:25.6]} 29... Kd6 {[%clk 0:03:01.5]} 30. g4 {[%clk 0:03:21]} 30... Bc8
{[%clk 0:02:51.4]} 31. Kd2 {[%clk 0:03:20]} 31... g5 {[%clk 0:02:41]} 32. Kc2
{[%clk 0:03:16.6]} 32... f5 {[%clk 0:02:38.2]} 33. gxf5 {[%clk 0:03:11.4]} 33...
Bxf5+ {[%clk 0:02:38.1]} 34. Kd2 {[%clk 0:03:09.2]} 34... Rb1 {[%clk 0:02:29]}
35. Rb2 {[%clk 0:03:02.3]} 35... Rxb2+ {[%clk 0:02:13.2]} 36. Nxb2 {[%clk
0:03:00.5]} 36... c5 {[%clk 0:02:12.6]} 37. Kc3 {[%clk 0:02:59]} 37... Bd7
{[%clk 0:02:06.2]} 38. g3 {[%clk 0:02:48.7]} 38... h5 {[%clk 0:02:00.8]} 39. f4
{[%clk 0:02:48]} 39... h4 {[%clk 0:01:56.7]} 40. gxh4 {[%clk 0:02:46.9]} 40...
gxh4 {[%clk 0:01:56]} 41. Nd1 {[%clk 0:02:45.1]} 41... h3 {[%clk 0:01:46.2]} 42.
Nf2 {[%clk 0:02:44]} 42... h2 {[%clk 0:01:45.8]} 43. e4 {[%clk 0:02:39.4]} 43...
dxe4 {[%clk 0:01:42.5]} 44. dxc5+ {[%clk 0:02:16.2]} 44... Kd5 {[%clk
0:01:41.6]} 45. c6 {[%clk 0:02:02.5]} 45... Bxc6 {[%clk 0:01:36.9]} 46. f5
{[%clk 0:01:58.7]} 46... e3 {[%clk 0:01:32.4]} 0-1

[Event "Live Chess"]
[Site "Chess.com"]
[Date "2024.06.01"]
[Round "-"]
[White "SavagePawn7"]
[Black "KnightStripes"]
[Result "0-1"]
[WhiteElo "671"]
[BlackElo "903"]
[TimeControl "300"]
[EndTime "14:36:51 PDT"]
[Termination "KnightStripes won on time"]

1. e4 {[%clk 0:04:56]} 1... c6 {[%clk 0:04:58.9]} 2. d4 {[%clk 0:04:53.9]} 2...
d5 {[%clk 0:04:57.8]} 3. Nc3 {[%clk 0:04:52.4]} 3... dxe4 {[%clk 0:04:55.2]} 4.
Bc4 {[%clk 0:04:50.7]} 4... Bf5 {[%clk 0:04:45.5]} 5. f3 {[%clk 0:04:48.4]} 5...
exf3 {[%clk 0:04:43.2]} 6. Nxf3 {[%clk 0:04:46.7]} 6... e6 {[%clk 0:04:40.9]} 7.
O-O {[%clk 0:04:42.8]} 7... Nf6 {[%clk 0:04:38.4]} 8. Ne5 {[%clk 0:04:40.6]}
8... Bd6 {[%clk 0:04:29]} 9. Rxf5 {[%clk 0:04:37.2]} 9... exf5 {[%clk
0:04:26.9]} 10. Nxf7 {[%clk 0:04:35.5]} 10... Qe7 {[%clk 0:04:18.1]} 11. Nxh8
{[%clk 0:04:33.8]} 11... Qf8 {[%clk 0:04:12.2]} 12. Nf7 {[%clk 0:04:29.5]} 12...
Nbd7 {[%clk 0:04:04.1]} 13. Nxd6+ {[%clk 0:04:15.4]} 13... Kd8 {[%clk
0:04:01.3]} 14. Nxb7+ {[%clk 0:04:07.4]} 14... Kc7 {[%clk 0:03:59]} 15. Nc5
{[%clk 0:04:00.4]} 15... Qd6 {[%clk 0:03:54.8]} 16. Qf1 {[%clk 0:03:44]} 16...
Ng4 {[%clk 0:03:52.6]} 17. Bf4 {[%clk 0:03:34.5]} 17... Nde5 {[%clk 0:03:45]}
18. dxe5 {[%clk 0:02:51.2]} 18... Nxe5 {[%clk 0:03:42.8]} 19. Bxe5 {[%clk
0:02:48.5]} 19... Qxe5 {[%clk 0:03:41.7]} 20. Nd3 {[%clk 0:02:42.2]} 20... Qd4+
{[%clk 0:03:36.7]} 21. Qf2 {[%clk 0:02:39.3]} 21... Qxc4 {[%clk 0:03:34.9]} 22.
Qxf5 {[%clk 0:00:49.1]} 22... Qd4+ {[%clk 0:03:29.8]} 23. Qf2 {[%clk 0:00:43.5]}
23... Qb6 {[%clk 0:03:17.3]} 24. Kh1 {[%clk 0:00:33.8]} 24... Qa5 {[%clk
0:03:09.5]} 25. Qf7+ {[%clk 0:00:31.5]} 25... Kb6 {[%clk 0:03:07.7]} 26. Qf2+
{[%clk 0:00:22.6]} 26... Kb7 {[%clk 0:03:02]} 27. Qf7+ {[%clk 0:00:19.2]} 27...
Kb6 {[%clk 0:03:00.8]} 28. Ne5 {[%clk 0:00:08.9]} 28... Qxe5 {[%clk 0:02:57.1]}
29. Na4+ {[%clk 0:00:05.2]} 29... Ka5 {[%clk 0:02:54.3]} 30. Qb3 {[%clk
0:00:00.8]} 30... Qb5 {[%clk 0:02:47.7]} 0-1

[Event "Live Chess"]
[Site "Chess.com"]
[Date "2024.06.01"]
[Round "-"]
[White "Plato_77"]
[Black "PughmanChess"]
[Result "0-1"]
[WhiteElo "1348"]
[BlackElo "1387"]
[TimeControl "300"]
[EndTime "14:36:59 PDT"]
[Termination "PughmanChess won by resignation"]

1. d4 {[%clk 0:04:58.1]} 1... f5 {[%clk 0:04:58]} 2. Bf4 {[%clk 0:04:54.7]} 2...
Nf6 {[%clk 0:04:56.4]} 3. Nf3 {[%clk 0:04:53.7]} 3... e6 {[%clk 0:04:55.5]} 4.
e3 {[%clk 0:04:50.5]} 4... Be7 {[%clk 0:04:55]} 5. Bc4 {[%clk 0:04:47.2]} 5...
O-O {[%clk 0:04:53.9]} 6. O-O {[%clk 0:04:44.7]} 6... b5 {[%clk 0:04:50.8]} 7.
Bxb5 {[%clk 0:04:34.8]} 7... a6 {[%clk 0:04:48.5]} 8. Bd3 {[%clk 0:04:26.2]}
8... Bb7 {[%clk 0:04:44.3]} 9. Nbd2 {[%clk 0:04:23.6]} 9... d6 {[%clk
0:04:41.1]} 10. c3 {[%clk 0:04:21.6]} 10... Nbd7 {[%clk 0:04:39.8]} 11. Qb3
{[%clk 0:04:18.8]} 11... Bd5 {[%clk 0:04:33.8]} 12. c4 {[%clk 0:04:16.6]} 12...
Bb7 {[%clk 0:04:26.7]} 13. Qxb7 {[%clk 0:04:14.7]} 13... Rb8 {[%clk 0:04:24.5]}
14. Qxa6 {[%clk 0:04:12.9]} 14... Rxb2 {[%clk 0:04:23.6]} 15. Rfb1 {[%clk
0:04:10.2]} 15... Rxb1+ {[%clk 0:04:19.2]} 16. Rxb1 {[%clk 0:04:10.1]} 16... e5
{[%clk 0:04:18.5]} 17. dxe5 {[%clk 0:04:08.3]} 17... dxe5 {[%clk 0:04:17.9]} 18.
Qe6+ {[%clk 0:04:00.9]} 18... Kh8 {[%clk 0:04:15.7]} 19. Bxe5 {[%clk 0:03:55.2]}
19... Nxe5 {[%clk 0:04:13.7]} 20. Nxe5 {[%clk 0:03:55.1]} 20... Bd6 {[%clk
0:04:04.7]} 21. Nf7+ {[%clk 0:03:32.5]} 21... Rxf7 {[%clk 0:04:00.9]} 22. Qxf7
{[%clk 0:03:32.4]} 22... Bxh2+ {[%clk 0:03:56.5]} 23. Kxh2 {[%clk 0:03:32.3]}
23... Qxd3 {[%clk 0:03:55.6]} 24. Qf8+ {[%clk 0:03:28.5]} 24... Ng8 {[%clk
0:03:54.8]} 25. Nf3 {[%clk 0:03:23.4]} 25... Qxb1 {[%clk 0:03:52.4]} 26. Ne5
{[%clk 0:03:13.1]} 26... h6 {[%clk 0:03:45.8]} 27. Nf7+ {[%clk 0:02:56.6]} 27...
Kh7 {[%clk 0:03:44.1]} 28. Ne5 {[%clk 0:02:36.7]} 28... Qe4 {[%clk 0:03:34.2]}
29. f4 {[%clk 0:02:29.8]} 29... Nf6 {[%clk 0:03:23.8]} 30. Nf7 {[%clk
0:02:21.2]} 30... Qxe3 {[%clk 0:03:15]} 31. Qh8+ {[%clk 0:02:18.4]} 31... Kg6
{[%clk 0:03:14.5]} 32. Ne5+ {[%clk 0:02:12]} 32... Kh5 {[%clk 0:03:11.7]} 33.
Qa8 {[%clk 0:01:20.8]} 33... Qxf4+ {[%clk 0:03:08]} 34. Kg1 {[%clk 0:01:09.1]}
34... Qxe5 {[%clk 0:03:06.8]} 35. Qf3+ {[%clk 0:01:05.5]} 35... Ng4 {[%clk
0:03:04.7]} 36. Qh3+ {[%clk 0:01:03.7]} 36... Kg6 {[%clk 0:03:02.6]} 0-1

[Event "Live Chess"]
[Site "Chess.com"]
[Date "2024.06.01"]
[Round "-"]
[White "Mangoalo"]
[Black "LL220284LL"]
[Result "0-1"]
[WhiteElo "1067"]
[BlackElo "2531"]
[TimeControl "300"]
[EndTime "14:36:59 PDT"]
[Termination "LL220284LL won by resignation"]

1. f4 {[%clk 0:04:54.3]} 1... d5 {[%clk 0:04:59.3]} 2. Nf3 {[%clk 0:04:54.2]}
2... Nh6 {[%clk 0:04:57.9]} 3. g3 {[%clk 0:04:50.6]} 3... g6 {[%clk 0:04:56.9]}
4. Bg2 {[%clk 0:04:49.9]} 4... Bg7 {[%clk 0:04:56.5]} 5. Nc3 {[%clk 0:04:48.1]}
5... O-O {[%clk 0:04:56]} 6. d4 {[%clk 0:04:48]} 6... Nf5 {[%clk 0:04:54.1]} 7.
Bd2 {[%clk 0:04:47.6]} 7... e6 {[%clk 0:04:50.3]} 8. O-O {[%clk 0:04:45.6]} 8...
b6 {[%clk 0:04:48.1]} 9. Re1 {[%clk 0:04:44.9]} 9... Bb7 {[%clk 0:04:47.1]} 10.
Bh3 {[%clk 0:04:29.3]} 10... Nxd4 {[%clk 0:04:41.4]} 11. Nxd4 {[%clk 0:04:26.3]}
11... Bxd4+ {[%clk 0:04:39.9]} 12. Kg2 {[%clk 0:04:24.8]} 12... Bg7 {[%clk
0:04:38.2]} 13. f5 {[%clk 0:04:22.4]} 13... d4+ {[%clk 0:04:31.5]} 14. Kf1
{[%clk 0:04:14.8]} 14... dxc3 {[%clk 0:04:25.1]} 15. Bxc3 {[%clk 0:04:14.7]}
15... Bxc3 {[%clk 0:04:19.9]} 16. bxc3 {[%clk 0:04:14.6]} 16... exf5 {[%clk
0:04:17.5]} 17. Qc1 {[%clk 0:04:11.3]} 17... Nc6 {[%clk 0:04:15.5]} 18. Bxf5
{[%clk 0:04:08.4]} 18... gxf5 {[%clk 0:04:13.6]} 19. Qg5+ {[%clk 0:04:07.5]}
19... Qxg5 {[%clk 0:04:12.7]} 0-1

[Event "Live Chess"]
[Site "Chess.com"]
[Date "2024.06.01"]
[Round "-"]
[White "AndyJWise"]
[Black "agamilewska"]
[Result "0-1"]
[WhiteElo "1045"]
[BlackElo "1764"]
[TimeControl "300"]
[EndTime "14:37:09 PDT"]
[Termination "agamilewska won by resignation"]

1. d4 {[%clk 0:04:56.8]} 1... d5 {[%clk 0:04:59]} 2. c4 {[%clk 0:04:55.8]} 2...
e6 {[%clk 0:04:57.7]} 3. Nc3 {[%clk 0:04:54.3]} 3... Nf6 {[%clk 0:04:56.7]} 4.
Bg5 {[%clk 0:04:52.7]} 4... Be7 {[%clk 0:04:55.5]} 5. Nf3 {[%clk 0:04:51.6]}
5... dxc4 {[%clk 0:04:53.9]} 6. e4 {[%clk 0:04:45.4]} 6... h6 {[%clk 0:04:52.7]}
7. Bxf6 {[%clk 0:04:40.5]} 7... Bxf6 {[%clk 0:04:51.7]} 8. e5 {[%clk 0:04:39.5]}
8... Bg5 {[%clk 0:04:50.2]} 9. Bxc4 {[%clk 0:04:38.1]} 9... O-O {[%clk 0:04:48]}
10. h4 {[%clk 0:04:34.6]} 10... Be7 {[%clk 0:04:46]} 11. g4 {[%clk 0:04:31.1]}
11... c5 {[%clk 0:04:44.9]} 12. g5 {[%clk 0:04:25.6]} 12... cxd4 {[%clk
0:04:35.7]} 13. gxh6 {[%clk 0:04:19.1]} 13... dxc3 {[%clk 0:04:32.8]} 14. Qc2
{[%clk 0:04:10.8]} 14... g6 {[%clk 0:04:22.4]} 15. h5 {[%clk 0:04:06.6]} 15...
Kh7 {[%clk 0:04:17.6]} 16. hxg6+ {[%clk 0:04:05]} 16... fxg6 {[%clk 0:04:16.8]}
17. Bd3 {[%clk 0:03:57]} 17... Rxf3 {[%clk 0:04:10.2]} 18. Bxg6+ {[%clk
0:03:53.4]} 18... Kh8 {[%clk 0:04:09.1]} 19. Bh5 {[%clk 0:03:35.1]} 19... Qd2+
{[%clk 0:04:06.7]} 20. Qxd2 {[%clk 0:03:29.9]} 20... cxd2+ {[%clk 0:04:06.6]}
21. Kxd2 {[%clk 0:03:29.6]} 21... Rxf2+ {[%clk 0:04:05.2]} 22. Ke3 {[%clk
0:03:25.1]} 22... Rf5 {[%clk 0:04:01.4]} 23. Bg6 {[%clk 0:03:20.6]} 23... Rxe5+
{[%clk 0:03:59.4]} 24. Kf4 {[%clk 0:03:19]} 24... Rg5 {[%clk 0:03:48.8]} 25.
Rag1 {[%clk 0:03:13.4]} 25... Rxg1 {[%clk 0:03:44.3]} 26. Rxg1 {[%clk
0:03:11.8]} 26... Nc6 {[%clk 0:03:42.4]} 27. Be4 {[%clk 0:02:31.9]} 27... e5+
{[%clk 0:03:40.1]} 28. Ke3 {[%clk 0:02:28.1]} 28... Bc5+ {[%clk 0:03:28.5]} 29.
Kd3 {[%clk 0:02:24.4]} 29... Bxg1 {[%clk 0:03:27.7]} 0-1

[Event "Live Chess"]
[Site "Chess.com"]
[Date "2024.06.01"]
[Round "-"]
[White "dhairyapandyauk"]
[Black "booktrunk"]
[Result "0-1"]
[WhiteElo "1654"]
[BlackElo "1424"]
[TimeControl "300"]
[EndTime "14:37:14 PDT"]
[Termination "booktrunk won by resignation"]

1. e4 {[%clk 0:04:58]} 1... e6 {[%clk 0:04:55]} 2. d4 {[%clk 0:04:56.7]} 2... h6
{[%clk 0:04:53.9]} 3. f4 {[%clk 0:04:54.9]} 3... b6 {[%clk 0:04:49.7]} 4. Nf3
{[%clk 0:04:54.2]} 4... Bb7 {[%clk 0:04:49.2]} 5. Bd3 {[%clk 0:04:51.4]} 5...
Nf6 {[%clk 0:04:46.8]} 6. Qe2 {[%clk 0:04:45.5]} 6... Be7 {[%clk 0:04:41.8]} 7.
c3 {[%clk 0:04:44.4]} 7... d6 {[%clk 0:04:40.7]} 8. Nbd2 {[%clk 0:04:42.7]} 8...
Nbd7 {[%clk 0:04:40.2]} 9. b3 {[%clk 0:04:40.7]} 9... O-O {[%clk 0:04:37.5]} 10.
Bb2 {[%clk 0:04:40.2]} 10... Re8 {[%clk 0:04:35.8]} 11. O-O {[%clk 0:04:39.8]}
11... Nf8 {[%clk 0:04:34.7]} 12. e5 {[%clk 0:04:38.2]} 12... dxe5 {[%clk
0:04:32.9]} 13. fxe5 {[%clk 0:04:36.5]} 13... Bxf3 {[%clk 0:04:30.4]} 14. Qxf3
{[%clk 0:04:32.3]} 14... N6h7 {[%clk 0:04:28.8]} 15. Qxf7+ {[%clk 0:04:31.1]}
15... Kh8 {[%clk 0:04:25.4]} 16. Bg6 {[%clk 0:04:08.2]} 16... Nxg6 {[%clk
0:04:17.7]} 17. Qxg6 {[%clk 0:04:07.4]} 17... Bg5 {[%clk 0:04:11.1]} 18. Ne4
{[%clk 0:03:59.8]} 18... Rf8 {[%clk 0:04:07.9]} 19. Rxf8+ {[%clk 0:03:54]} 19...
Nxf8 {[%clk 0:04:01.8]} 20. Qf7 {[%clk 0:03:50]} 20... Be3+ {[%clk 0:03:59.5]}
21. Kh1 {[%clk 0:03:48.8]} 21... Nh7 {[%clk 0:03:58]} 22. Rf1 {[%clk 0:03:42.3]}
22... Qh4 {[%clk 0:03:53.9]} 23. Ng3 {[%clk 0:03:25.8]} 23... Rf8 {[%clk
0:03:49.9]} 24. Qxe6 {[%clk 0:03:07.2]} 24... Rxf1+ {[%clk 0:03:47.9]} 25. Nxf1
{[%clk 0:03:06.8]} 25... Qf2 {[%clk 0:03:46.3]} 26. Qe8+ {[%clk 0:02:25.5]}
26... Nf8 {[%clk 0:03:44.7]} 27. Qxf8+ {[%clk 0:02:23.6]} 27... Qxf8 {[%clk
0:03:40.6]} 28. Nxe3 {[%clk 0:02:23.2]} 28... Qf2 {[%clk 0:03:38.2]} 29. h3
{[%clk 0:02:13.3]} 29... Qxe3 {[%clk 0:03:36.5]} 30. c4 {[%clk 0:02:12]} 30...
Qe2 {[%clk 0:03:32.3]} 31. Bc3 {[%clk 0:02:09.1]} 31... Qd3 {[%clk 0:03:26]} 32.
Bb4 {[%clk 0:02:03]} 32... Qxd4 {[%clk 0:03:24]} 33. e6 {[%clk 0:02:02.1]} 33...
Qe5 {[%clk 0:03:22]} 34. e7 {[%clk 0:02:01.4]} 34... c5 {[%clk 0:03:20]} 35.
Bxc5 {[%clk 0:01:51.4]} 35... bxc5 {[%clk 0:03:17.2]} 0-1